fUSD/lending_fUSD_20260423
["ID","MTS","AMOUNT","RATE_DAILY","PERIOD"]
[421006159,1776906333413,150.0,6.189e-05,2]
[421006160,1776906338516,150.0,6.189e-05,2]
[421006161,1776906338569,150.0,6.533e-05,2]
[421006162,1776906338629,150.0,6.189e-05,2]
[421006163,1776906338667,150.0,6.275e-05,2]
[421006164,1776906338706,150.0,6.361e-05,2]
[421006165,1776906338812,150.0,6.447e-05,2]
[421006166,1776906338853,150.0,6.533e-05,2]
[421006167,1776906338888,150.0,6.619e-05,2]
[421006168,1776906338924,150.0,6.705e-05,2]
[421006169,1776906338963,150.0,6.791e-05,2]
[421006170,1776906339339,298.96442628,6.189e-05,2]
[421006171,1776906347790,152.0,6.585e-05,7]
[421006177,1776906427536,200.0,6.2e-05,2]
[421006178,1776906429618,400.0,6.3e-05,2]
[421006179,1776906441146,600.0,6.4e-05,2]
[421006180,1776906442842,607.08265978,6.5e-05,2]
[421006181,1776906442869,192.91734022,6.5e-05,2]
[421006182,1776906446736,1000.0,6.6e-05,2]
[421006183,1776906596791,500.0,6.554e-05,2]
[421006186,1776906632343,-161.0,6.654e-05,3]
[421006187,1776906632353,-154.0,6.654e-05,3]
[421006188,1776906632363,-195.0,6.654e-05,3]
[421006189,1776906632372,-42.0,6.654e-05,3]
[421006190,1776906632495,-850.0,6.654e-05,3]
[421006191,1776906632505,-1.19222845,6.7e-05,2]
[421006192,1776906632517,-198.80777155,6.7e-05,2]
[421006193,1776906632526,-200.0,6.8e-05,2]
[421006194,1776906632536,-188.0,6.872e-05,2]
[421006195,1776906632545,-300.0,6.872e-05,2]
[421006196,1776906632559,-1200.0,6.872e-05,2]
[421006197,1776906632570,-398.37635569,6.873e-05,2]
[421006198,1776906632579,-500.0,6.873e-05,2]
[421006199,1776906632589,-500.0,6.873e-05,2]
[421006200,1776906632599,-500.0,6.873e-05,2]
[421006201,1776906632608,-458.63773172,6.873e-05,2]
[421006202,1776906632618,-504.06938275,6.873e-05,2]
[421006203,1776906632628,-500.0,6.873e-05,2]
[421006204,1776906632638,-500.0,6.873e-05,2]
[421006205,1776906632647,-500.0,6.873e-05,2]
[421006206,1776906632657,-500.0,6.873e-05,2]
[421006207,1776906632666,-311.88887855,6.873e-05,2]
[421006208,1776906632676,-506.25645231,6.873e-05,2]
[421006209,1776906632685,-165.29738432,6.873e-05,2]
[421006211,1776906632694,-316.89962782,6.873e-05,2]
[421006212,1776906632704,-571.79586512,6.873e-05,2]
[421006213,1776906632714,-300.0,6.876e-05,2]
[421006214,1776906632723,-150.0,6.877e-05,2]
[421006215,1776906632733,-150.0,6.877e-05,2]
[421006216,1776906632742,-150.0,6.877e-05,2]
[421006217,1776906632752,-176.6837889,6.877e-05,2]
[421006219,1776906632762,-150.0,6.877e-05,2]
[421006220,1776906632771,-150.0,6.877e-05,2]
[421006221,1776906632781,-150.0,6.877e-05,2]
[421006222,1776906632791,-150.0,6.877e-05,2]
[421006223,1776906632800,-153.10779314,6.877e-05,2]
[421006224,1776906632810,-500.0,6.877e-05,2]
[421006225,1776906632819,-150.0,6.898e-05,2]
[421006226,1776906632829,-1093.8672339,6.899e-05,2]
[421006227,1776906632839,-171.51803023,6.899e-05,2]
[421006228,1776906632848,-500.0,6.899e-05,2]
[421006229,1776906632858,-500.0,6.899e-05,2]
[421006230,1776906632868,-500.0,6.899e-05,2]
[421006231,1776906632877,-255.26094717,6.899e-05,2]
[421006232,1776906632886,-500.0,6.899e-05,2]
[421006233,1776906632895,-500.0,6.899e-05,2]
[421006234,1776906632904,-500.0,6.899e-05,2]
[421006235,1776906632914,-500.0,6.899e-05,2]
[421006236,1776906632923,-667.11505381,6.899e-05,2]
[421006237,1776906632933,-667.11505381,6.899e-05,2]
[421006238,1776906632942,-667.11505381,6.899e-05,2]
[421006239,1776906632951,-667.11505381,6.899e-05,2]
[421006240,1776906632962,-667.11505381,6.899e-05,2]
[421006241,1776906632971,-667.11505381,6.899e-05,2]
[421006242,1776906632980,-667.11505381,6.899e-05,2]
[421006243,1776906632991,-667.11505381,6.899e-05,2]
[421006244,1776906633000,-667.11505381,6.899e-05,2]
[421006245,1776906633010,-667.11505381,6.899e-05,2]
[421006246,1776906633019,-667.11505381,6.899e-05,2]
[421006247,1776906633028,-667.11505381,6.899e-05,2]
[421006248,1776906633038,-667.11505381,6.899e-05,2]
[421006249,1776906633047,-667.11505381,6.899e-05,2]
[421006250,1776906633056,-667.11505381,6.899e-05,2]
[421006251,1776906633066,-667.11505381,6.899e-05,2]
[421006252,1776906633075,-667.11505381,6.899e-05,2]
[421006253,1776906633085,-667.11505381,6.899e-05,2]
[421006254,1776906633094,-667.11505381,6.899e-05,2]
[421006255,1776906633104,-667.11505381,6.899e-05,2]
[421006256,1776906633113,-667.11505381,6.899e-05,2]
[421006257,1776906633122,-667.11505381,6.899e-05,2]
[421006258,1776906633132,-667.11505381,6.899e-05,2]
[421006259,1776906633141,-667.11505381,6.899e-05,2]
[421006260,1776906633151,-667.11505381,6.899e-05,2]
[421006261,1776906633161,-667.11505381,6.899e-05,2]
[421006262,1776906633170,-667.11505381,6.899e-05,2]
[421006263,1776906633179,-667.11505381,6.899e-05,2]
[421006264,1776906633189,-667.11505381,6.899e-05,2]
[421006265,1776906633198,-667.11505381,6.899e-05,2]
[421006266,1776906633208,-667.11505381,6.899e-05,2]
[421006267,1776906633218,-667.11505381,6.899e-05,2]
[421006268,1776906633227,-667.11505381,6.899e-05,2]
[421006269,1776906633237,-667.11505381,6.899e-05,2]
[421006270,1776906633247,-667.11505381,6.899e-05,2]
[421006271,1776906633257,-667.11505381,6.899e-05,2]
[421006272,1776906633267,-667.11505381,6.899e-05,2]
[421006273,1776906633276,-667.11505381,6.899e-05,2]
[421006274,1776906633286,-667.11505381,6.899e-05,2]
[421006275,1776906633296,-667.11505381,6.899e-05,2]
[421006276,1776906633306,-667.11505381,6.899e-05,2]
[421006277,1776906633316,-667.11505381,6.899e-05,2]
[421006278,1776906633326,-667.11505381,6.899e-05,2]
[421006279,1776906633335,-667.11505381,6.899e-05,2]
[421006280,1776906633345,-667.11505381,6.899e-05,2]
[421006281,1776906633355,-667.11505381,6.899e-05,2]
[421006282,1776906633364,-667.11505381,6.899e-05,2]
[421006283,1776906633374,-667.11505381,6.899e-05,2]
[421006284,1776906633383,-667.11505381,6.899e-05,2]
[421006285,1776906633393,-667.11505381,6.899e-05,2]
[421006286,1776906633403,-667.11505381,6.899e-05,2]
[421006287,1776906633412,-667.11505381,6.899e-05,2]
[421006288,1776906633422,-667.11505381,6.899e-05,2]
[421006289,1776906633431,-667.11505381,6.899e-05,2]
[421006290,1776906633441,-667.11505381,6.899e-05,2]
[421006291,1776906633451,-667.11505381,6.899e-05,2]
[421006292,1776906633461,-667.11505381,6.899e-05,2]
[421006293,1776906633470,-667.11505381,6.899e-05,2]
[421006294,1776906633480,-667.11505381,6.899e-05,2]
[421006295,1776906633489,-564.76916303,6.899e-05,2]
[421006296,1776906633499,-542.53299788,6.899e-05,2]
[421006297,1776906633508,-662.51426033,6.899e-05,2]
[421006298,1776906633518,-662.51426033,6.899e-05,2]
[421006299,1776906633527,-662.51426033,6.899e-05,2]
[421006300,1776906633538,-662.51426033,6.899e-05,2]
[421006301,1776906633547,-662.51426033,6.899e-05,2]
[421006302,1776906633557,-662.51426033,6.899e-05,2]
[421006303,1776906633567,-662.51426033,6.899e-05,2]
[421006304,1776906633576,-662.51426033,6.899e-05,2]
[421006305,1776906633586,-662.51426033,6.899e-05,2]
[421006306,1776906633595,-662.51426033,6.899e-05,2]
[421006307,1776906633605,-662.51426033,6.899e-05,2]
[421006308,1776906633614,-662.51426033,6.899e-05,2]
[421006309,1776906633623,-662.51426033,6.899e-05,2]
[421006310,1776906633633,-662.51426033,6.899e-05,2]
[421006311,1776906633643,-662.51426033,6.899e-05,2]
[421006312,1776906633653,-662.51426033,6.899e-05,2]
[421006313,1776906633663,-662.51426033,6.899e-05,2]
[421006314,1776906633673,-662.51426033,6.899e-05,2]
[421006315,1776906633683,-662.51426033,6.899e-05,2]
[421006316,1776906633692,-662.51426033,6.899e-05,2]
[421006317,1776906633702,-662.51426033,6.899e-05,2]
[421006318,1776906633711,-662.51426033,6.899e-05,2]
[421006319,1776906633721,-662.51426033,6.899e-05,2]
[421006320,1776906633731,-662.51426033,6.899e-05,2]
[421006321,1776906633740,-662.51426033,6.899e-05,2]
[421006322,1776906633750,-662.51426033,6.899e-05,2]
[421006323,1776906633759,-662.51426033,6.899e-05,2]
[421006324,1776906633770,-500.0,6.899e-05,2]
[421006325,1776906633779,-500.0,6.899e-05,2]
[421006326,1776906633789,-211.45653831,6.899e-05,2]
[421006327,1776906633799,-500.0,6.899e-05,2]
[421006328,1776906633809,-500.0,6.899e-05,2]
[421006329,1776906633819,-500.0,6.899e-05,2]
[421006330,1776906633828,-303.68993622,6.899e-05,2]
[421006331,1776906633838,-500.0,6.899e-05,2]
[421006332,1776906633847,-500.0,6.899e-05,2]
[421006333,1776906633857,-500.0,6.899e-05,2]
[421006334,1776906633867,-500.0,6.899e-05,2]
[421006335,1776906633876,-687.0518255,6.899e-05,2]
[421006336,1776906633885,-687.0518255,6.899e-05,2]
[421006337,1776906633894,-687.0518255,6.899e-05,2]
[421006338,1776906633903,-687.0518255,6.899e-05,2]
[421006339,1776906633913,-500.0,6.899e-05,2]
[421006340,1776906633922,-293.53715633,6.899e-05,2]
[421006341,1776906633931,-500.0,6.899e-05,2]
[421006342,1776906633941,-632.94644874,6.899e-05,2]
[421006343,1776906633950,-525.04606692,6.899e-05,2]
[421006344,1776906633959,-181.94036089,6.899e-05,2]
[421006345,1776906633968,-150.0,6.899e-05,2]
[421006346,1776906633978,-79587.70772618,6.9e-05,2]
[421006347,1776906633995,-561.36,6.9e-05,2]
[421006348,1776906634027,-764.99473768,6.9e-05,2]
[421006378,1776906639668,-325.27906857,6.799e-05,2]
[421006379,1776906639700,-611.85130665,6.799e-05,2]
[421006380,1776906639734,-458.21523207,6.799e-05,2]
[421006381,1776906639748,-76054.52688906,6.799e-05,2]
[421006382,1776906639762,-48260.90960365,6.799e-05,2]
[421006383,1776906639773,-732.57472602,6.889e-05,2]
[421006384,1776906639787,-829.67010334,6.889e-05,2]
[421006385,1776906639807,-676.27294775,6.889e-05,2]
[421006386,1776906639821,-956.79071888,6.889e-05,2]
[421006389,1776906642327,-609.25579067,6.889e-05,2]
[421006390,1776906642339,-409.81132552,6.889e-05,2]
[421006403,1776906643376,-1054.0,6.889e-05,2]
[421006404,1776906643438,-9540.00000002,6.889e-05,2]
[421006471,1776906646679,-508.41497466,6.889e-05,2]
[421006511,1776906647297,-2485.95076643,6.889e-05,2]
[421006514,1776906647340,-1009.25,6.889e-05,2]
[421006515,1776906689660,653.0,6.645e-05,2]
[421006516,1776906758423,307.11021304,6.554e-05,2]
[421006517,1776906758445,192.88978696,6.554e-05,2]
[421006518,1776906787411,868.0,6.554e-05,3]
[421006519,1776906845059,825.0,6.554e-05,3]
[421006523,1776906905368,767.1377663,6.554e-05,3]
[421006524,1776906905392,15.8622337,6.554e-05,3]
[421006525,1776906906179,185.0,6.554e-05,3]
[421006526,1776906916147,396.02,0.000165,120]
[421006527,1776906968214,744.0,6.554e-05,3]
[421006528,1776907011466,161.0,6.554e-05,3]
[421006529,1776907026533,707.0,6.554e-05,3]
[421006530,1776907065225,200.0,6.443e-05,2]
[421006531,1776907087652,640.16531956,6.554e-05,3]
[421006532,1776907087677,31.83468044,6.554e-05,3]
[421006533,1776907146428,638.0,6.554e-05,3]
[421006534,1776907210648,176.0,6.554e-05,3]
[421006535,1776907213802,606.0,6.554e-05,3]
[421006536,1776907267446,576.0,6.554e-05,3]
[421006537,1776907525071,150.0,6.115e-05,2]
[421006538,1776907525186,150.0,6.115e-05,2]
[421006540,1776907532307,150.0,6.115e-05,2]
[421006541,1776907541530,150.00000001,6.115e-05,2]
[421006542,1776907578412,1188.04,0.000165,120]
[421006543,1776907682280,1885.1,5.968e-05,2]
[421006544,1776907776312,-150.0,6.455e-05,2]
[421006545,1776907776342,-193.0,6.504e-05,2]
[421006546,1776907776371,-162.0,6.554e-05,3]
[421006547,1776907776400,-156.0,6.554e-05,3]
[421006548,1776907776428,-212.89133452,6.596e-05,2]
[421006549,1776907776456,-250.0,6.609e-05,2]
[421006550,1776907776485,-2905.053,6.663e-05,2]
[421006551,1776907776513,-213.766,6.663e-05,2]
[421006552,1776907776542,-1200.0,6.701e-05,2]
[421006553,1776907776570,-300.0,6.772e-05,2]
[421006554,1776907776598,-150.0,6.772e-05,2]
[421006555,1776907776626,-276.0,6.772e-05,2]
[421006556,1776907776655,-160.12347697,6.773e-05,2]
[421006557,1776907776683,-500.0,6.773e-05,2]
[421006558,1776907776710,-234.13117685,6.773e-05,2]
[421006559,1776907776738,-500.0,6.773e-05,2]
[421006560,1776907776766,-500.0,6.773e-05,2]
[421006561,1776907776795,-500.0,6.773e-05,2]
[421006562,1776907776825,-500.0,6.773e-05,2]
[421006563,1776907776854,-500.0,6.773e-05,2]
[421006564,1776907776883,-297.24673784,6.773e-05,2]
[421006565,1776907776912,-500.0,6.789e-05,2]
[421006566,1776907776939,-19639.78827382,6.789e-05,2]
[421006567,1776907786321,-27957.15566444,6.789e-05,2]
[421006568,1776907786344,-150.0,6.795e-05,2]
[421006569,1776907786366,-598.86,6.797e-05,2]
[421006570,1776907786387,-500.0,6.798e-05,2]
[421006571,1776907786409,-500.0,6.798e-05,2]
[421006572,1776907786430,-293.98433556,6.798e-05,2]
[421006573,1776907797611,-30000.0,6.689e-05,2]
[421006574,1776907806263,-300.0,6.688e-05,2]
[421006575,1776907806305,-1200.0,6.688e-05,2]
[421006576,1776907806329,-150.0,6.688e-05,2]
[421006577,1776907806357,-28350.0,6.689e-05,2]
[421006578,1776907817025,-30000.0,6.689e-05,2]
[421006579,1776907828896,6751.0,6.209e-05,2]
[421006580,1776907831606,-498.60816711,6.689e-05,2]
[421006604,1776907833823,-4474.17622993,6.689e-05,2]
[421006605,1776907833854,-473185.59420296,6.689e-05,2]
[421006606,1776907833863,-177.0,6.689e-05,3]
[421006607,1776907833873,-565.0,6.689e-05,3]
[421006608,1776907833884,-500.0,6.773e-05,2]
[421006609,1776907833894,-500.0,6.773e-05,2]
[421006610,1776907833904,-171.93182394,6.773e-05,2]
[421006611,1776907833913,-500.0,6.773e-05,2]
[421006612,1776907833922,-500.0,6.773e-05,2]
[421006613,1776907833932,-500.0,6.773e-05,2]
[421006614,1776907833942,-206.01566444,6.798e-05,2]
[421006615,1776907833952,-500.0,6.798e-05,2]
[421006616,1776907833961,-645.24977128,6.798e-05,2]
[421006617,1776907833970,-500.0,6.798e-05,2]
[421006618,1776907833980,-500.0,6.798e-05,2]
[421006619,1776907833989,-178.11619956,6.798e-05,2]
[421006620,1776907833999,-500.0,6.798e-05,2]
[421006621,1776907834008,-500.0,6.798e-05,2]
[421006622,1776907834017,-500.0,6.798e-05,2]
[421006623,1776907834027,-500.0,6.798e-05,2]
[421006624,1776907834037,-500.0,6.798e-05,2]
[421006625,1776907834046,-500.0,6.798e-05,2]
[421006626,1776907834056,-500.0,6.798e-05,2]
[421006627,1776907834066,-500.0,6.798e-05,2]
[421006628,1776907834075,-500.0,6.798e-05,2]
[421006629,1776907834085,-500.0,6.798e-05,2]
[421006630,1776907834095,-500.0,6.798e-05,2]
[421006631,1776907834104,-500.0,6.798e-05,2]
[421006632,1776907834114,-500.0,6.798e-05,2]
[421006633,1776907834123,-500.0,6.798e-05,2]
[421006634,1776907834134,-500.0,6.798e-05,2]
[421006635,1776907834143,-500.0,6.798e-05,2]
[421006636,1776907834154,-500.0,6.798e-05,2]
[421006637,1776907834164,-500.0,6.798e-05,2]
[421006638,1776907834174,-500.0,6.798e-05,2]
[421006639,1776907834185,-500.0,6.798e-05,2]
[421006640,1776907834195,-500.0,6.798e-05,2]
[421006641,1776907834204,-500.0,6.798e-05,2]
[421006642,1776907834213,-500.0,6.798e-05,2]
[421006643,1776907834222,-500.0,6.798e-05,2]
[421006644,1776907834232,-500.0,6.798e-05,2]
[421006645,1776907834241,-500.0,6.798e-05,2]
[421006646,1776907834250,-500.0,6.798e-05,2]
[421006647,1776907834260,-500.0,6.798e-05,2]
[421006648,1776907834269,-500.0,6.798e-05,2]
[421006649,1776907834278,-500.0,6.798e-05,2]
[421006650,1776907834287,-500.0,6.798e-05,2]
[421006651,1776907834296,-500.0,6.798e-05,2]
[421006652,1776907834306,-500.0,6.798e-05,2]
[421006653,1776907834315,-413.39351174,6.798e-05,2]
[421006654,1776907834324,-500.0,6.798e-05,2]
[421006655,1776907834333,-500.0,6.798e-05,2]
[421006656,1776907834343,-500.0,6.798e-05,2]
[421006657,1776907834352,-500.0,6.798e-05,2]
[421006658,1776907834362,-500.0,6.798e-05,2]
[421006659,1776907834372,-500.0,6.798e-05,2]
[421006660,1776907834382,-500.0,6.798e-05,2]
[421006661,1776907834391,-500.0,6.798e-05,2]
[421006662,1776907834400,-500.0,6.798e-05,2]
[421006663,1776907834410,-500.0,6.798e-05,2]
[421006664,1776907834419,-500.0,6.798e-05,2]
[421006665,1776907834428,-500.0,6.798e-05,2]
[421006666,1776907834437,-500.0,6.798e-05,2]
[421006667,1776907834447,-500.0,6.798e-05,2]
[421006668,1776907834456,-500.0,6.798e-05,2]
[421006669,1776907834466,-500.0,6.798e-05,2]
[421006670,1776907834475,-500.0,6.798e-05,2]
[421006671,1776907834485,-500.0,6.798e-05,2]
[421006672,1776907834494,-517.54462914,6.798e-05,2]
[421006673,1776907834503,-500.0,6.798e-05,2]
[421006674,1776907834512,-500.0,6.798e-05,2]
[421006675,1776907834522,-500.0,6.798e-05,2]
[421006676,1776907834532,-500.0,6.798e-05,2]
[421006677,1776907834541,-500.0,6.798e-05,2]
[421006678,1776907834550,-500.0,6.798e-05,2]
[421006679,1776907834560,-500.0,6.798e-05,2]
[421006680,1776907834569,-500.0,6.798e-05,2]
[421006681,1776907834578,-500.0,6.798e-05,2]
[421006682,1776907834588,-500.0,6.798e-05,2]
[421006683,1776907834597,-500.0,6.798e-05,2]
[421006684,1776907834607,-350.0,6.798e-05,2]
[421006685,1776907834616,-500.0,6.798e-05,2]
[421006686,1776907834626,-500.0,6.798e-05,2]
[421006687,1776907834636,-500.0,6.798e-05,2]
[421006688,1776907834646,-500.0,6.798e-05,2]
[421006689,1776907834655,-500.0,6.798e-05,2]
[421006690,1776907834665,-500.0,6.798e-05,2]
[421006691,1776907834674,-500.0,6.798e-05,2]
[421006692,1776907834684,-1061.79216013,6.798e-05,2]
[421006693,1776907834693,-6000.73,6.798e-05,2]
[421006694,1776907834703,-749.59151062,6.798e-05,2]
[421006695,1776907834715,-362.36399931,6.798e-05,2]
[421006696,1776907834727,-728.59443489,6.798e-05,2]
[421006697,1776907834739,-1700.23783598,6.798e-05,2]
[421006698,1776907834750,-491.75,6.798e-05,2]
[421006699,1776907837827,-500.0,6.798e-05,2]
[421006700,1776907837837,-1615.28883656,6.798e-05,2]
[421006701,1776907838019,-53417.44338264,6.798e-05,2]
[421006702,1776907838029,-299.99,6.798e-05,2]
[421006703,1776907838039,-999.99,6.798e-05,2]
[421006704,1776907838049,-150.99,6.798e-05,2]
[421006705,1776907838059,-9999.99,6.798e-05,2]
[421006706,1776907838069,-548.12170108,6.799e-05,2]
[421006707,1776907838079,-10659.95330639,6.84e-05,2]
[421006708,1776907838091,-441.01209213,6.84e-05,2]
[421006709,1776907838100,-307.70672994,6.84e-05,2]
[421006710,1776907838110,-152.0,6.855e-05,7]
[421006711,1776907838119,-364.0,6.862e-05,2]
[421006712,1776907838129,-152.0,6.865e-05,7]
[421006713,1776907838140,-179.48,6.9e-05,2]
[421006714,1776907838149,-150.0,6.9e-05,2]
[421006715,1776907838159,-1532.0,6.9e-05,2]
[421006716,1776907838168,-500.0,6.9e-05,2]
[421006717,1776907838178,-1532.0,6.9e-05,2]
[421006718,1776907838187,-500.0,6.973e-05,2]
[421006719,1776907838197,-277.4914597,6.98e-05,2]
[421006720,1776907838206,-371.0,6.984e-05,2]
[421006721,1776907838216,-250.0,6.986e-05,2]
[421006722,1776907838226,-758.11,6.986e-05,2]
[421006723,1776907838235,-151.0,6.996e-05,2]
[421006724,1776907838245,-151.0,6.996e-05,2]
[421006725,1776907838256,-151.0,6.997e-05,2]
[421006726,1776907838266,-297.0,6.998e-05,2]
[421006727,1776907838276,-1061.79216013,6.999e-05,2]
[421006728,1776907838286,-1061.79216013,6.999e-05,2]
[421006730,1776907838295,-1061.79216012,6.999e-05,2]
[421006732,1776907838305,-37591.30756752,7e-05,2]
[421006735,1776907838318,-829.67010334,7e-05,2]
[421006912,1776907840221,-1595.55276632,7e-05,2]
[421006913,1776907840235,-420.86826686,7e-05,2]
[421006914,1776907840257,-36365.39776443,7e-05,2]
[421006915,1776907840271,-2027.67609915,7e-05,2]
[421006916,1776907840282,-1136.0,7e-05,2]
[421006917,1776907840325,-20232.96582522,7e-05,2]
[421006918,1776907840431,-1181.0,7e-05,2]
[421006925,1776907846466,-325.12500658,6.798e-05,2]
[421006926,1776907846516,-174.87499342,6.798e-05,2]
[421006927,1776907846525,-363.27773391,7e-05,2]
[421006928,1776907846562,-5467.85699316,7e-05,2]
[421006929,1776907846670,-1016.25141604,7e-05,2]
[421006930,1776907846681,-662.35809813,7e-05,2]
[421006931,1776907846916,-24.0593714,7e-05,2]
[421006945,1776908024151,-615.0,7e-05,3]
[421006946,1776908047383,615.0,7e-05,3]
[421006947,1776908075930,-152.0,7.001e-05,7]
[421006949,1776908138609,-300.0,6.687e-05,2]
[421006950,1776908138635,-300.0,6.687e-05,2]
[421006951,1776908138660,-122.8955016,6.687e-05,2]
[421006952,1776908138691,-1077.1044984,6.687e-05,2]
[421006953,1776908161026,300.0,6.687e-05,2]
[421006954,1776908161946,150.0,6.687e-05,2]
[421006956,1776908245390,151.0,6.686e-05,2]
[421006957,1776908288656,151.0,6.686e-05,2]
[421006958,1776908350721,13.40835214,6.687e-05,2]
[421006959,1776908397900,-286.59164786,6.687e-05,2]
[421006960,1776908397924,-549.38892162,6.688e-05,2]
[421006961,1776908397946,-339.26872337,6.688e-05,2]
[421006962,1776908397968,-500.0,6.688e-05,2]
[421006963,1776908397990,-500.0,6.688e-05,2]
[421006964,1776908398014,-500.0,6.688e-05,2]
[421006965,1776908398037,-500.0,6.688e-05,2]
[421006966,1776908398058,-413.60412459,6.688e-05,2]
[421006967,1776908398086,-500.0,6.688e-05,2]
[421006968,1776908398112,-500.0,6.688e-05,2]
[421006969,1776908398139,-500.0,6.688e-05,2]
[421006970,1776908398166,-500.0,6.688e-05,2]
[421006971,1776908398192,-500.0,6.688e-05,2]
[421006972,1776908398218,-500.0,6.688e-05,2]
[421006973,1776908398244,-500.0,6.688e-05,2]
[421006974,1776908398270,-500.0,6.688e-05,2]
[421006975,1776908398296,-500.0,6.688e-05,2]
[421006976,1776908398322,-500.0,6.688e-05,2]
[421006977,1776908398348,-500.0,6.688e-05,2]
[421006978,1776908398375,-500.0,6.688e-05,2]
[421006979,1776908398402,-411.14658256,6.688e-05,2]
[421006980,1776908405947,-88.85341744,6.688e-05,2]
[421006981,1776908405975,-500.0,6.688e-05,2]
[421006982,1776908406002,-146.87118256,6.688e-05,2]
[421006983,1776908433201,500.0,0.000165,120]
[421006998,1776908452778,600.64617871,0.000165,120]
[421007000,1776908576359,816.15,6.287e-05,2]
[421007001,1776908706674,152.65034881,6.016e-05,2]
[421007002,1776908712899,150.0,6.016e-05,2]
[421007003,1776908713914,153.2613761,6.016e-05,2]
[421007004,1776908723972,150.0,6.016e-05,2]
[421007006,1776908820538,-153.32992861,6.685e-05,2]
[421007007,1776908820568,-168.27647645,6.685e-05,2]
[421007008,1776908820597,-300.0,6.687e-05,2]
[421007009,1776908820625,-1200.0,6.687e-05,2]
[421007010,1776908820653,-150.0,6.687e-05,2]
[421007011,1776908820672,-153.32992861,6.688e-05,2]
[421007012,1776908820683,-168.27647645,6.688e-05,2]
[421007013,1776908820694,-300.0,6.688e-05,2]
[421007014,1776908820709,-442.22012586,6.688e-05,2]
[421007015,1776908820718,-500.0,6.689e-05,2]
[421007016,1776908820727,-257.77987414,6.689e-05,2]
[421007017,1776908820739,-150.0,6.689e-05,2]
[421007018,1776908820750,-1056.79718988,6.689e-05,2]
[421007019,1776908820798,-5000.01,6.689e-05,2]
[421007020,1776908820920,-5000.01,6.689e-05,2]
[421007021,1776908821063,-5000.01,6.689e-05,2]
[421007022,1776908821155,-5000.01,6.689e-05,2]
[421007023,1776908821291,-5000.01,6.689e-05,2]
[421007024,1776908821408,-5000.01,6.689e-05,2]
[421007025,1776908821518,-5000.01,6.689e-05,2]
[421007026,1776908822059,-5000.01,6.689e-05,2]
[421007027,1776908822138,-5000.01,6.689e-05,2]
[421007028,1776908823510,-5000.01,6.689e-05,2]
[421007029,1776908826211,-5000.01,6.689e-05,2]
[421007030,1776908826335,-5000.01,6.689e-05,2]
[421007031,1776908826623,-5000.01,6.689e-05,2]
[421007032,1776908826638,-5000.01,6.689e-05,2]
[421007033,1776908826649,-5000.01,6.689e-05,2]
[421007034,1776908826663,-5000.01,6.689e-05,2]
[421007035,1776908826678,-5000.01,6.689e-05,2]
[421007036,1776908826689,-5000.01,6.689e-05,2]
[421007037,1776908826700,-5000.01,6.689e-05,2]
[421007038,1776908826861,-8577.94827509,6.689e-05,2]
[421007039,1776908826871,-5000.01,6.689e-05,2]
[421007040,1776908826885,-10000.01,6.689e-05,2]
[421007041,1776908826896,-5000.01,6.689e-05,2]
[421007042,1776908826910,-10000.01,6.689e-05,2]
[421007043,1776908826930,-5000.01,6.689e-05,2]
[421007044,1776908826943,-10000.01,6.689e-05,2]
[421007045,1776908826954,-5000.01,6.689e-05,2]
[421007046,1776908826995,-10000.01,6.689e-05,2]
[421007047,1776908827016,-5000.01,6.689e-05,2]
[421007048,1776908827044,-5000.01,6.689e-05,2]
[421007049,1776908827057,-10000.01,6.689e-05,2]
[421007050,1776908827089,-5000.01,6.689e-05,2]
[421007051,1776908827103,-10000.01,6.689e-05,2]
[421007052,1776908827260,-10000.01,6.689e-05,2]
[421007053,1776908827347,-5000.01,6.689e-05,2]
[421007054,1776908827434,-5000.01,6.689e-05,2]
[421007055,1776908827531,-5000.01,6.689e-05,2]
[421007056,1776908827632,-10000.01,6.689e-05,2]
[421007057,1776908827755,-10000.01,6.689e-05,2]
[421007058,1776908832381,-10000.01,6.689e-05,2]
[421007059,1776908832486,-10000.01,6.689e-05,2]
[421007060,1776908832604,-10000.01,6.689e-05,2]
[421007061,1776908832825,-10000.01,6.689e-05,2]